fUSD/lending_fUSD_20250812
["ID","MTS","AMOUNT","RATE_DAILY","PERIOD"]
[378822640,1755037845214,-400.0,0.00049315,120]
[378822643,1755037845222,-466.5,0.00049315,120]
[378822645,1755037845232,-400.0,0.00049315,120]
[378822647,1755037845241,-751.95,0.00049315,120]
[378822656,1755037845318,-400.0,0.00049315,120]
[378822658,1755037845328,-400.0,0.00049315,120]
[378822660,1755037845337,-400.0,0.00049315,120]
[378822662,1755037845346,-401.86669387,0.00049315,120]
[378822664,1755037845355,-400.0,0.00049315,120]
[378822666,1755037845365,-400.0,0.00049315,120]
[378822668,1755037845374,-906.0,0.00049315,120]
[378822670,1755037845383,-457.29,0.00049315,120]
[378822673,1755037845392,-497.34,0.00049315,120]
[378822675,1755037845402,-400.0,0.00049315,120]
[378822677,1755037845411,-400.0,0.00049315,120]
[378822679,1755037845420,-975.12,0.00049315,120]
[378822681,1755037845429,-400.0,0.00049315,120]
[378822683,1755037845438,-400.0,0.00049315,120]
[378822685,1755037845447,-400.0,0.00049315,120]
[378822687,1755037845456,-430.14,0.00049315,120]
[378822689,1755037845466,-400.0,0.00049315,120]
[378822691,1755037845476,-416.97,0.00049315,120]
[378822693,1755037845486,-434.23,0.00049315,120]
[378822695,1755037845496,-401.58524296,0.00049315,120]
[378822696,1755037845506,-400.0,0.00049315,120]
[378822698,1755037845516,-400.0,0.00049315,120]
[378822700,1755037845526,-400.0,0.00049315,120]
[378822702,1755037845537,-487.57,0.00049315,120]
[378822704,1755037845548,-400.0,0.00049315,120]
[378822706,1755037845559,-330.03033266,0.00049315,120]
[378822708,1755037845569,-280.0,0.00049315,120]
[378822710,1755037845580,-1329.15,0.00049315,120]
[378822712,1755037845591,-1027.81,0.00049315,120]
[378822714,1755037845601,-400.0,0.00049315,120]
[378822716,1755037845612,-400.0,0.00049315,120]
[378822718,1755037845623,-400.0,0.00049315,120]
[378822720,1755037845633,-925.98,0.00049315,120]
[378822722,1755037845643,-400.0,0.00049315,120]
[378822724,1755037845657,-400.0,0.00049315,120]
[378822726,1755037845668,-400.0,0.00049315,120]
[378822728,1755037845679,-400.0,0.00049315,120]
[378822730,1755037845694,-404.91,0.00049315,120]
[378822732,1755037845704,-1315.52,0.00049315,120]
[378822734,1755037845714,-400.0,0.00049315,120]
[378822736,1755037845723,-400.0,0.00049315,120]
[378822738,1755037845733,-400.0,0.00049315,120]
[378822740,1755037845743,-930.76,0.00049315,120]
[378822742,1755037845752,-400.0,0.00049315,120]
[378822744,1755037845762,-455.38,0.00049315,120]
[378822746,1755037845772,-400.0,0.00049315,120]
[378822748,1755037845781,-476.03,0.00049315,120]
[378822750,1755037845791,-400.0,0.00049315,120]
[378822752,1755037845800,-400.0,0.00049315,7]
[378822754,1755037845809,-400.0,0.00049315,120]
[378822756,1755037845819,-400.0,0.00049315,120]
[378822758,1755037845829,-400.73529165,0.00049315,120]
[378822760,1755037845838,-426.16,0.00049315,120]
[378822761,1755037845847,-400.0,0.00049315,120]
[378822764,1755037845857,-400.0,0.00049315,120]
[378822766,1755037845870,-400.0,0.00049315,120]
[378822768,1755037845879,-403.79882443,0.00049315,120]
[378822770,1755037845888,-479.97,0.00049315,120]
[378822772,1755037845897,-704.89,0.00049315,120]
[378822774,1755037845909,-400.0,0.00049315,120]
[378822776,1755037845918,-435.9,0.00049315,120]
[378822778,1755037845928,-416.23,0.00049315,120]
[378822780,1755037845937,-400.0,0.00049315,120]
[378822782,1755037845947,-400.0,0.00049315,120]
[378822784,1755037845957,-400.0,0.00049315,120]
[378822786,1755037845967,-400.0,0.00049315,120]
[378822788,1755037845976,-400.0,0.00049315,120]
[378822790,1755037845986,-913.74,0.00049315,120]
[378822792,1755037845995,-400.0,0.00049315,120]
[378822794,1755037846005,-400.0,0.00049315,120]
[378822796,1755037846015,-400.0,0.00049315,120]
[378822798,1755037846024,-637.4,0.00049315,120]
[378822800,1755037846034,-665.22,0.00049315,120]
[378822802,1755037846043,-400.0,0.00049315,120]
[378822804,1755037846052,-589.88,0.00049315,120]
[378822806,1755037846062,-400.0,0.00049315,120]
[378822808,1755037846071,-400.0,0.00049315,120]
[378822810,1755037846081,-400.0,0.00049315,120]
[378822812,1755037846090,-401.0380677,0.00049315,120]
[378822815,1755037846099,-400.0,0.00049315,120]
[378822816,1755037846109,-400.0,0.00049315,120]
[378822818,1755037846118,-500.0,0.00049315,120]
[378822821,1755037846127,-500.0,0.00049315,120]
[378822823,1755037846136,-400.0,0.00049315,120]
[378822825,1755037846145,-400.0,0.00049315,120]
[378822826,1755037846156,-400.0,0.00049315,120]
[378822829,1755037846165,-447.06,0.00049315,120]
[378822831,1755037846174,-400.0,0.00049315,120]
[378822832,1755037846183,-400.0,0.00049315,120]
[378822835,1755037846193,-400.0,0.00049315,120]
[378822836,1755037846202,-400.0,0.00049315,120]
[378822839,1755037846211,-400.0,0.00049315,120]
[378822841,1755037846221,-400.0,0.00049315,120]
[378822843,1755037846230,-400.0,0.00049315,120]
[378822845,1755037846239,-400.0,0.00049315,120]
[378822846,1755037846249,-812.17,0.00049315,120]
[378822848,1755037846258,-400.0,0.00049315,120]
[378822850,1755037846267,-713.01,0.00049315,120]
[378822852,1755037846276,-484.16,0.00049315,120]
[378822854,1755037846286,-882.67,0.00049315,120]
[378822856,1755037846296,-400.0,0.00049315,120]
[378822859,1755037846305,-272.73386356,0.00049315,120]
[378822861,1755037846315,-400.0,0.00049315,120]
[378822863,1755037846324,-400.0,0.00049315,120]
[378822865,1755037846334,-400.0,0.00049315,120]
[378822867,1755037846343,-746.51,0.00049315,120]
[378822869,1755037846351,-646.94,0.00049315,120]
[378822871,1755037846360,-400.0,0.00049315,120]
[378822873,1755037846370,-400.0,0.00049315,120]
[378822875,1755037846379,-400.0,0.00049315,120]
[378822877,1755037846388,-400.0,0.00049315,120]
[378822879,1755037846398,-400.0,0.00049315,120]
[378822881,1755037846408,-400.0,0.00049315,120]
[378822883,1755037846418,-400.0,0.00049315,120]
[378822885,1755037846427,-400.0,0.00049315,120]
[378822887,1755037846437,-400.0,0.00049315,120]
[378822889,1755037846447,-400.0,0.00049315,120]
[378822891,1755037846459,-752.03,0.00049315,120]
[378822893,1755037846470,-762.0,0.00049315,120]
[378822895,1755037846481,-487.39,0.00049315,120]
[378822897,1755037846492,-400.0,0.00049315,120]
[378822899,1755037846502,-230.36982452,0.00049315,120]
[378822901,1755037846512,-400.0,0.00049315,120]
[378822903,1755037846523,-400.0,0.00049315,120]
[378822905,1755037846534,-400.0,0.00049315,120]
[378822907,1755037846544,-400.0,0.00049315,120]
[378822909,1755037846554,-400.0,0.00049315,120]
[378822911,1755037846564,-400.0,0.00049315,120]
[378822913,1755037846574,-390.93707433,0.00049315,120]
[378822915,1755037846584,-400.0,0.00049315,120]
[378822917,1755037846593,-400.0,0.00049315,120]
[378822919,1755037846602,-400.0,0.00049315,120]
[378822921,1755037846611,-500.0,0.00049315,120]
[378822923,1755037846620,-400.0,0.00049315,120]
[378822925,1755037846630,-400.76858311,0.00049315,120]
[378822927,1755037846639,-400.72623114,0.00049315,120]
[378822929,1755037846649,-553.27,0.00049315,120]
[378822931,1755037846659,-449.88,0.00049315,120]
[378822933,1755037846670,-400.0,0.00049315,120]
[378822935,1755037846681,-400.0,0.00049315,120]
[378822937,1755037846692,-400.0,0.00049315,120]
[378822939,1755037846702,-400.0,0.00049315,120]
[378822941,1755037846711,-1226.67,0.00049315,120]
[378822943,1755037846721,-401.10747354,0.00049315,120]
[378822945,1755037846731,-851.34,0.00049315,120]
[378822947,1755037846740,-400.0,0.00049315,120]
[378822949,1755037846749,-500.0,0.00049315,120]
[378822951,1755037846759,-500.0,0.00049315,120]
[378822953,1755037846769,-500.0,0.00049315,120]
[378822955,1755037846778,-971.94,0.00049315,120]
[378822957,1755037846786,-400.0,0.00049315,120]
[378822959,1755037846795,-1384.37,0.00049315,120]
[378822961,1755037846803,-400.0,0.00049315,120]
[378822963,1755037846812,-400.0,0.00049315,120]
[378822965,1755037846821,-2110.25,0.00049315,120]
[378822967,1755037846830,-400.0,0.00049315,120]
[378822969,1755037846839,-510.8,0.00049315,120]
[378822971,1755037846848,-400.0,0.00049315,120]
[378822973,1755037846858,-400.0,0.00049315,120]
[378822975,1755037846867,-400.0,0.00049315,120]
[378822977,1755037846876,-366.17,0.00049315,120]
[378822979,1755037846885,-400.0,0.00049315,120]
[378822980,1755037846894,-400.0,0.00049315,120]
[378822982,1755037846906,-400.0,0.00049315,120]
[378822984,1755037846915,-400.0,0.00049315,120]
[378822986,1755037846925,-400.0,0.00049315,120]
[378822989,1755037846934,-400.0,0.00049315,120]
[378822991,1755037846943,-825.77,0.00049315,120]
[378822993,1755037846953,-797.75,0.00049315,120]
[378822995,1755037846962,-400.0,0.00049315,120]
[378822997,1755037846971,-1418.26,0.00049315,120]
[378822999,1755037846981,-400.0,0.00049315,120]
[378823001,1755037846991,-400.0,0.00049315,120]
[378823003,1755037847001,-400.74154546,0.00049315,120]
[378823005,1755037847010,-400.0,0.00049315,120]
[378823007,1755037847020,-193.534394,0.00049315,120]
[378823009,1755037847030,-400.0,0.00049315,120]
[378823011,1755037847040,-400.0,0.00049315,120]
[378823013,1755037847050,-400.0,0.00049315,120]
[378823015,1755037847059,-460.0,0.00049315,120]
[378823017,1755037847069,-400.0,0.00049315,120]
[378823019,1755037847079,-400.0,0.00049315,120]
[378823021,1755037847090,-400.0,0.00049315,120]
[378823023,1755037847099,-1069.76,0.00049315,120]
[378823025,1755037847109,-400.0,0.00049315,120]
[378823027,1755037847119,-464.99168526,0.00049315,120]
[378823030,1755037847129,-400.0,0.00049315,120]
[378823032,1755037847139,-1391.57,0.00049315,120]
[378823034,1755037847148,-400.0,0.00049315,120]
[378823036,1755037847160,-581.28,0.00049315,120]
[378823038,1755037847169,-510.2,0.00049315,120]
[378823040,1755037847179,-400.5764102,0.00049315,120]
[378823042,1755037847189,-833.04,0.00049315,120]
[378823044,1755037847199,-400.0,0.00049315,120]
[378823046,1755037847208,-400.0,0.00049315,120]
[378823048,1755037847218,-400.0,0.00049315,120]
[378823050,1755037847227,-400.0,0.00049315,120]
[378823052,1755037847237,-400.77012378,0.00049315,120]
[378823054,1755037847247,-1121.69,0.00049315,120]
[378823056,1755037847256,-400.0,0.00049315,120]
[378823058,1755037847266,-400.0,0.00049315,120]
[378823060,1755037847276,-1783.71,0.00049315,120]
[378823062,1755037847285,-510.74,0.00049315,120]
[378823064,1755037847295,-400.0,0.00049315,120]
[378823066,1755037847304,-400.0,0.00049315,120]
[378823068,1755037847314,-1549.92,0.00049315,120]
[378823070,1755037847324,-400.0,0.00049315,120]
[378823072,1755037847334,-1337.94,0.00049315,120]
[378823074,1755037847344,-1011.39,0.00049315,120]
[378823076,1755037847354,-400.0,0.00049315,120]
[378823078,1755037847363,-2060.0,0.00049315,30]
[378823081,1755037847373,-400.0,0.00049315,120]
[378823083,1755037847387,-400.0,0.00049315,120]
[378823085,1755037847397,-902.77,0.00049315,120]
[378823087,1755037847407,-1871.09,0.00049315,120]
[378823089,1755037847417,-416.63,0.00049315,120]
[378823091,1755037847427,-1252.48,0.00049315,120]
[378823093,1755037847436,-400.0,0.00049315,120]
[378823095,1755037847446,-718.89,0.00049315,120]
[378823097,1755037847456,-1531.81,0.00049315,120]
[378823099,1755037847466,-408.75901173,0.00049315,120]
[378823101,1755037847476,-400.0,0.00049315,120]
[378823103,1755037847487,-400.0,0.00049315,120]
[378823105,1755037847496,-2252.52,0.00049315,120]
[378823107,1755037847507,-1591.82,0.00049315,120]
[378823109,1755037847517,-400.0,0.00049315,120]
[378823111,1755037847527,-727.33,0.00049315,120]
[378823114,1755037847538,-1338.32,0.00049315,120]
[378823116,1755037847548,-570.65,0.00049315,120]
[378823118,1755037847558,-400.0,0.00049315,120]
[378823120,1755037847568,-824.5,0.00049315,120]
[378823122,1755037847578,-400.0,0.00049315,120]
[378823124,1755037847588,-400.0,0.00049315,120]
[378823126,1755037847598,-2936.59,0.00049315,120]
[378823128,1755037847608,-400.0,0.00049315,120]
[378823130,1755037847618,-604.89,0.00049315,120]
[378823132,1755037847628,-570.91,0.00049315,120]
[378823134,1755037847638,-500.0,0.00049315,120]
[378823136,1755037847648,-500.0,0.00049315,120]
[378823138,1755037847660,-500.0,0.00049315,120]
[378823140,1755037847670,-805.68,0.00049315,120]
[378823141,1755037847681,-400.0,0.00049315,120]
[378823142,1755037847693,-1243.14,0.00049315,120]
[378823143,1755037847702,-400.0,0.00049315,120]
[378823144,1755037847712,-400.0,0.00049315,120]
[378823145,1755037847722,-1506.57,0.00049315,120]
[378823146,1755037847731,-635.16,0.00049315,120]
[378823147,1755037847743,-400.79925206,0.00049315,120]
[378823148,1755037847754,-7103.12,0.00049315,120]
[378823149,1755037847763,-769.22,0.00049315,120]
[378823150,1755037847773,-400.0,0.00049315,120]
[378823151,1755037847783,-915.56,0.00049315,120]
[378823153,1755037847793,-2108.99,0.00049315,120]
[378823155,1755037847802,-400.0,0.00049315,120]
[378823157,1755037847812,-400.0,0.00049315,120]
[378823159,1755037847823,-400.0,0.00049315,120]
[378823161,1755037847833,-1436.49,0.00049315,120]
[378823163,1755037847843,-520.0,0.00049315,120]
[378823165,1755037847853,-1103.4,0.00049315,120]
[378823167,1755037847863,-955.29,0.00049315,120]
[378823169,1755037847873,-400.0,0.00049315,120]
[378823172,1755037847883,-706.86,0.00049315,120]
[378823174,1755037847892,-400.0,0.00049315,120]
[378823176,1755037847903,-400.0,0.00049315,120]
[378823178,1755037847912,-400.0,0.00049315,120]
[378823180,1755037847922,-868.64,0.00049315,120]
[378823182,1755037847932,-2835.4,0.00049315,120]
[378823184,1755037847942,-400.0,0.00049315,120]
[378823185,1755037847952,-1376.12,0.00049315,120]
[378823187,1755037847961,-1000.0,0.00049315,120]
[378823189,1755037847971,-454.85,0.00049315,120]
[378823190,1755037847981,-1047.68,0.00049315,120]
[378823191,1755037847990,-532.09,0.00049315,120]
[378823192,1755037848000,-400.0,0.00049315,120]
[378823193,1755037848010,-639.62,0.00049315,120]
[378823194,1755037848021,-477.25,0.00049315,120]
[378823195,1755037848031,-400.0,0.00049315,120]
[378823196,1755037848041,-450.3,0.00049315,120]
[378823197,1755037848051,-584.96,0.00049315,120]
[378823198,1755037848061,-400.0,0.00049315,120]
[378823199,1755037848072,-517.41,0.00049315,120]
[378823200,1755037848082,-1447.3,0.00049315,120]
[378823201,1755037848093,-400.0,0.00049315,120]
[378823202,1755037848103,-400.0,0.00049315,120]
[378823203,1755037848113,-1383.4,0.00049315,120]
[378823204,1755037848123,-400.0,0.00049315,120]
[378823205,1755037848133,-400.0,0.00049315,120]
[378823206,1755037848150,-400.0,0.00049315,120]
[378823207,1755037848161,-14344.74,0.00049315,120]
[378823208,1755037848171,-874.21,0.00049315,120]
[378823209,1755037848180,-400.0,0.00049315,120]
[378823210,1755037848190,-1252.92,0.00049315,120]
[378823211,1755037848200,-400.0,0.00049315,120]
[378823212,1755037848210,-400.0,0.00049315,120]
[378823213,1755037848219,-400.0,0.00049315,120]
[378823214,1755037848231,-686.06,0.00049315,120]
[378823215,1755037848241,-621.1,0.00049315,120]
[378823216,1755037848254,-520.0,0.00049315,120]
[378823217,1755037848269,-400.0,0.00049315,120]
[378823218,1755037848278,-400.0,0.00049315,120]
[378823219,1755037848289,-400.0,0.00049315,120]
[378823220,1755037848299,-536.19,0.00049315,120]
[378823221,1755037848308,-504.46,0.00049315,120]
[378823222,1755037848317,-432.96,0.00049315,120]
[378823223,1755037848327,-416.62,0.00049315,120]
[378823224,1755037848337,-400.0,0.00049315,120]
[378823225,1755037848347,-1042.01,0.00049315,120]
[378823226,1755037848357,-754.66,0.00049315,120]
[378823227,1755037848367,-2661.65,0.00049315,120]
[378823228,1755037848377,-930.83,0.00049315,120]
[378823229,1755037848387,-837.79,0.00049315,120]
[378823230,1755037848397,-1058.2,0.00049315,120]
[378823231,1755037848408,-548.21,0.00049315,120]
[378823232,1755037848419,-400.0,0.00049315,120]
[378823233,1755037848429,-400.0,0.00049315,120]
[378823234,1755037848439,-538.99,0.00049315,120]
[378823235,1755037848449,-151.83695762,0.00049315,120]
[378823236,1755037848459,-400.0,0.00049315,120]
[378823237,1755037848469,-400.0,0.00049315,120]
[378823238,1755037848479,-400.0,0.00049315,120]
[378823239,1755037848490,-1029.94,0.00049315,120]
[378823241,1755037848500,-954.76,0.00049315,120]
[378823243,1755037848510,-400.0,0.00049315,120]
[378823245,1755037848521,-1673.6,0.00049315,120]
[378823247,1755037848531,-432.54,0.00049315,120]
[378823249,1755037848542,-1200.3,0.00049315,120]
[378823251,1755037848552,-400.0,0.00049315,120]
[378823253,1755037848563,-400.0,0.00049315,120]
[378823255,1755037848573,-725.32,0.00049315,120]
[378823257,1755037848584,-400.0,0.00049315,120]
[378823259,1755037848594,-400.0,0.00049315,120]
[378823262,1755037848604,-400.0,0.00049315,120]
[378823264,1755037848614,-1033.49,0.00049315,120]
[378823266,1755037848624,-400.0,0.00049315,120]
[378823268,1755037848634,-400.0,0.00049315,120]
[378823270,1755037848645,-1097.0,0.00049315,120]
[378823272,1755037848656,-400.0,0.00049315,120]
[378823274,1755037848666,-400.0,0.00049315,120]
[378823276,1755037848676,-400.0,0.00049315,120]
[378823278,1755037848688,-455.35,0.00049315,120]
[378823280,1755037848700,-400.0,0.00049315,120]
[378823282,1755037848712,-400.0,0.00049315,120]
[378823284,1755037848722,-657.53,0.00049315,120]
[378823287,1755037848735,-400.0,0.00049315,120]
[378823289,1755037848745,-400.0,0.00049315,120]
[378823291,1755037848755,-400.0,0.00049315,120]
[378823293,1755037848765,-483.97,0.00049315,120]
[378823295,1755037848775,-400.0,0.00049315,120]
[378823297,1755037848786,-400.0,0.00049315,120]
[378823299,1755037848796,-1487.18,0.00049315,120]
[378823301,1755037848806,-400.0,0.00049315,120]
[378823303,1755037848816,-400.0,0.00049315,120]
[378823305,1755037848826,-400.0,0.00049315,120]
[378823307,1755037848836,-1012.38,0.00049315,120]
[378823309,1755037848846,-667.97,0.00049315,120]
[378823311,1755037848856,-460.0,0.00049315,120]
[378823313,1755037848866,-830.93,0.00049315,120]
[378823315,1755037848876,-1492.27,0.00049315,120]
[378823317,1755037848885,-1514.49,0.00049315,120]
[378823319,1755037848895,-609.53,0.00049315,120]
[378823321,1755037848906,-400.0,0.00049315,120]
[378823324,1755037848916,-572.86,0.00049315,120]
[378823326,1755037848925,-226.74790897,0.00049315,120]
[378823328,1755037848934,-400.0,0.00049315,120]
[378823330,1755037848944,-400.0,0.00049315,120]
[378823332,1755037848954,-460.0,0.00049315,120]
[378823334,1755037848964,-754.08,0.00049315,120]
[378823336,1755037848973,-400.0,0.00049315,120]
[378823338,1755037848984,-400.0,0.00049315,120]
[378823339,1755037848994,-400.0,0.00049315,120]
[378823340,1755037849005,-744.8,0.00049315,120]
[378823341,1755037849015,-400.0,0.00049315,120]
[378823342,1755037849026,-400.0,0.00049315,120]
[378823343,1755037849035,-956.01,0.00049315,120]
[378823344,1755037849045,-728.79,0.00049315,120]
[378823345,1755037849055,-613.75,0.00049315,120]
[378823346,1755037849065,-819.37,0.00049315,120]
[378823347,1755037849074,-400.0,0.00049315,120]
[378823348,1755037849084,-581.3,0.00049315,120]
[378823349,1755037849093,-759.71,0.00049315,120]
[378823350,1755037849103,-400.0,0.00049315,120]
[378823352,1755037849113,-1143.45,0.00049315,120]
[378823354,1755037849133,-400.0,0.00049315,60]
[378823356,1755037849144,-811.45,0.00049315,120]
[378823358,1755037849163,-400.0,0.00049315,120]
[378823360,1755037849174,-400.0,0.00049315,120]
[378823362,1755037849184,-400.0,0.00049315,120]
[378823364,1755037849194,-415.27137349,0.00049315,120]
[378823366,1755037849203,-400.0,0.00049315,120]
[378823368,1755037849213,-892.73,0.00049315,120]
[378823370,1755037849223,-400.0,0.00049315,120]
[378823372,1755037849233,-400.0,0.00049315,120]
[378823374,1755037849243,-400.0,0.00049315,120]
[378823397,1755037849442,-400.0,0.00049315,120]
[378823399,1755037849452,-999.36,0.00049315,120]
[378823401,1755037849461,-3025.36,0.00049315,120]
[378823403,1755037849470,-1496.06,0.00049315,120]
[378823405,1755037849479,-906.39,0.00049315,120]
[378823407,1755037849488,-400.0,0.00049315,120]
[378823409,1755037849498,-400.0,0.00049315,120]
[378823411,1755037849507,-2237.09,0.00049315,120]
[378823413,1755037849516,-1218.68,0.00049315,120]
[378823415,1755037849525,-400.0,0.00049315,120]
[378823417,1755037849534,-467.6820113,0.00049315,120]
[378823419,1755037849543,-400.0,0.00049315,120]
[378823421,1755037849552,-400.0,0.00049315,120]
[378823422,1755037849562,-1356.8,0.00049315,120]
[378823424,1755037849571,-507.63,0.00049315,120]
[378823426,1755037849580,-565.67,0.00049315,120]
[378823429,1755037849590,-300.0,0.00049315,120]
[378823431,1755037849599,-400.0,0.00049315,120]
[378823433,1755037849607,-400.0,0.00049315,120]
[378823435,1755037849617,-400.0,0.00049315,120]
[378823437,1755037849626,-400.0,0.00049315,120]
[378823439,1755037849635,-432.66,0.00049315,118]
[378823440,1755037849645,-400.0,0.00049315,120]
[378823443,1755037849655,-400.0,0.00049315,120]
[378823445,1755037849665,-400.0,0.00049315,120]
[378823447,1755037849675,-1237.82,0.00049315,120]
[378823449,1755037849687,-587.99,0.00049315,120]
[378823451,1755037849704,-2598.96,0.00049315,120]
[378823453,1755037849713,-400.0,0.00049315,120]
[378823455,1755037849722,-273.45121499,0.00049315,120]
[378823457,1755037849731,-555.84,0.00049315,120]
[378823459,1755037849742,-400.0,0.00049315,120]
[378823461,1755037849751,-488.99412338,0.00049315,120]
[378823463,1755037849760,-515.38,0.00049315,120]
[378823464,1755037849770,-470.64,0.00049315,120]
[378823465,1755037849778,-1125.88,0.00049315,120]
[378823466,1755037849788,-400.0,0.00049315,120]
[378823467,1755037849797,-400.0,0.00049315,120]
[378823468,1755037849806,-1378.9,0.00049315,120]
[378823469,1755037849814,-1070.65,0.00049315,120]
[378823470,1755037849824,-400.0,0.00049315,120]
[378823471,1755037849833,-400.0,0.00049315,120]
[378823472,1755037849842,-400.0,0.00049315,120]
[378823473,1755037849851,-400.0,0.00049315,120]
[378823474,1755037849861,-625.77,0.00049315,120]
[378823475,1755037849870,-400.0,0.00049315,120]
[378823476,1755037849880,-930.33,0.00049315,120]
[378823478,1755037849890,-400.0,0.00049315,120]
[378823480,1755037849901,-400.0,0.00049315,120]
[378823482,1755037849911,-383.67740006,0.00049315,120]
[378823484,1755037849921,-400.0,0.00049315,120]
[378823486,1755037849930,-1516.66,0.00049315,120]
[378823488,1755037849940,-2490.24,0.00049315,120]
[378823490,1755037849949,-400.0,0.00049315,120]
[378823492,1755037849958,-490.0,0.00049315,120]
[378823494,1755037849968,-752.0,0.00049315,120]
[378823496,1755037849977,-400.0,0.00049315,120]
[378823498,1755037849987,-558.44,0.00049315,120]
[378823500,1755037849996,-400.0,0.00049315,120]
[378823502,1755037850006,-400.0,0.00049315,120]
[378823504,1755037850016,-400.0,0.00049315,120]
[378823506,1755037850025,-1282.21,0.00049315,120]
[378823508,1755037850035,-687.38,0.00049315,120]
[378823510,1755037850044,-857.11,0.00049315,120]
[378823512,1755037850054,-1536.72,0.00049315,120]
[378823514,1755037850064,-1006.35,0.00049315,120]
[378823516,1755037850073,-1695.23,0.00049315,120]
[378823518,1755037850082,-400.0,0.00049315,120]
[378823520,1755037850091,-400.0,0.00049315,120]
[378823522,1755037850101,-1889.33,0.00049315,120]
[378823524,1755037850110,-601.92,0.00049315,120]
[378823526,1755037850121,-400.0,0.00049315,120]
[378823528,1755037850130,-151.0,0.00049315,30]
[378823531,1755037850139,-1302.9,0.00049315,120]
[378823532,1755037850149,-400.0,0.00049315,120]
[378823535,1755037850163,-400.0,0.00049315,120]
[378823537,1755037850173,-460.0,0.00049315,120]
[378823539,1755037850183,-400.0,0.00049315,120]
[378823541,1755037850193,-400.0,0.00049315,120]
[378823543,1755037850202,-1342.37,0.00049315,120]
[378823545,1755037850212,-1162.57,0.00049315,120]
[378823547,1755037850221,-400.0,0.00049315,120]
[378823549,1755037850231,-1000.0,0.00049315,120]
[378823551,1755037850241,-400.0,0.00049315,120]
[378823553,1755037850250,-1766.28,0.00049315,120]
[378823555,1755037850259,-483.67,0.00049315,120]
[378823557,1755037850269,-400.0,0.00049315,120]
[378823559,1755037850278,-400.0,0.00049315,120]
[378823561,1755037850288,-2208.49,0.00049315,14]
[378823563,1755037850298,-400.0,0.00049315,120]
[378823565,1755037850308,-479.3,0.00049315,120]
[378823567,1755037850317,-400.0,0.00049315,120]
[378823570,1755037850327,-434.82,0.00049315,120]
[378823572,1755037850338,-412.19095609,0.00049315,120]
[378823574,1755037850348,-1062.06,0.00049315,120]
[378823576,1755037850358,-400.0,0.00049315,120]
[378823578,1755037850367,-400.0,0.00049315,120]
[378823580,1755037850377,-400.0,0.00049315,120]
[378823582,1755037850387,-400.0,0.00049315,120]
[378823584,1755037850396,-1803.02,0.00049315,120]
[378823586,1755037850406,-400.0,0.00049315,120]
[378823588,1755037850415,-2247.03,0.00049315,120]
[378823590,1755037850424,-1382.81,0.00049315,120]